Cogmind - Beta 16.1 @@@ ROGUE MODE // 2026.02.12 @ 20:21:52 Player: Skergy Result: Destroyed by T7-6TA(R) with Subdweller Laser Performance ------------- Evolutions (0) 0 Regions Visited (2) 400 Robots Destroyed (28) 140 Value Destroyed (837) 837 Prototype IDs (0) 0 Alien Tech Used (0) 0 Bonus (0) 0 TOTAL SCORE: 1377 Bonus ------- None Cogmind --------- Core Integrity 0/250 Matter 176/300 Energy 202/250 System Corruption 1% Temperature Cool (6) Movement Rolling (140) Ox4 Location -10/Subcaves Parts ------- > --- POWER (1) -------- Ion Engine > --- PROPULSION (2) --- Wheel Wheel > --- UTILITY (2) ------ Huge Storage Unit Light Armor Plating > --- WEAPON (2) ------- Battle Cannon Battle Cannon > --- INVENTORY (25) --- Ion Engine Ion Engine Ion Engine Light Treads Light Treads Aluminum Leg Aluminum Leg Aluminum Leg Aluminum Leg Small Storage Unit Medium Matter Pod (100) High-capacity Matter Pod (200) High-capacity Matter Pod (200) Structural Scanner Visual Processing Unit Subdweller Optics Makeshift Terrain Scanner ECM Suite Light Armor Plating Scrap Shield Subdweller Laser Subdweller Laser Subdweller Machine Gun Subdweller Shrapnel Launcher Peak State ------------ > --- POWER ------------ Ion Engine > --- PROPULSION ------- Light Treads Wheel > --- UTILITY ---------- Huge Storage Unit Seismic Detector > --- WEAPON ----------- Battle Cannon Battle Cannon > --- INVENTORY -------- Ion Engine Ion Engine Ion Engine Aluminum Leg Aluminum Leg Aluminum Leg Aluminum Leg Aluminum Leg Aluminum Leg Heat Sink Small Storage Unit Small Storage Unit Medium Matter Pod High-capacity Matter Pod High-capacity Matter Pod Structural Scanner Visual Processing Unit Subdweller Optics Improved Terrain Scanner ECM Suite Light Armor Plating Light Armor Plating Subdweller Laser Subdweller Laser Subdweller Machine Gun [Rating: 12] Favorites ----------- Power Ion Engine Engine Ion Engine Propulsion Light Treads Treads Light Treads Wheel Compact Wheel Utility Huge Storage Unit Device Seismic Detector Storage Huge Storage Unit Protection Light Armor Plating Weapon Battle Cannon Energy Gun EM Pulse Gun Ballistic Gun Light Assault Rifle Ballistic Cannon Battle Cannon Build | -11 -10 -10 ------- Run | Yrd Mat Sub Slots Evolved . | . . . Power . | . . . Propulsion . | . . . Utility . | . . . Weapon . | . . . Parts Attached 22 | 8 6 8 Power 2 | 1 1 . Engine 2 | 1 1 . Core . | . . . Reactor . | . . . Propulsion 7 | 2 1 4 Treads 3 | 2 . 1 Leg . | . . . Wheel 4 | . 1 3 Hover . | . . . Flight . | . . . Utility 5 | 3 1 1 Device 2 | 2 . . Storage 2 | 1 1 . Processor . | . . . Hackware . | . . . Protection 1 | . . 1 Artifact . | . . . Weapon 8 | 2 3 3 Energy Gun 3 | 2 1 . Energy Cannon . | . . . Ballistic Gun 2 | . 1 1 Ballistic Cannon 3 | . 1 2 Launcher . | . . . Special Weapon . | . . . Impact Weapon . | . . . Slashing Weapon . | . . . Piercing Weapon . | . . . Special Melee Weapon . | . . . Unidentified Prototypes . | . . . Corrupted Parts 1 | . 1 . System Corruption 1 | . 1 . Parts Lost 9 | . 5 4 Power 1 | . 1 . Propulsion 3 | . 1 2 Utility 1 | . . 1 Weapon 4 | . 3 1 Highest Loss Streak 2 | . 2 2 To Critical Strikes . | . . . Average Backups 18 | 4 16 23 Power 2 | . 2 3 Propulsion 6 | 3 6 6 Utility 8 | . 7 12 Weapon 1 | . . 2 Tool/Special . | . . . Unused Backups 24 | . . 24 Power 3 | . . 3 Propulsion 6 | . . 6 Utility 12 | . . 12 Weapon 3 | . . 3 Tool/Special . | . . . Average Slot Usage (%) 99 | . 99 99 Engine 13 | . 13 14 Treads 14 | . 15 13 Wheel 13 | . 12 14 Device 12 | . 14 10 Storage 14 | . 14 14 Protection 1 | . . 3 Energy Gun 7 | . 13 . Ballistic Gun 7 | . 10 3 Ballistic Cannon 12 | . 4 24 Peak Build Rating 12 | 9 9 12 Average Rating 9 | 5 8 11 On Entrance 5 | . 7 9 Avg Prop Armor Cover (%) 12 | . 13 10 Naked Turns . | . . . Heaviest Build 94 | 15 90 94 Greatest Support 40 | 40 40 40 Greatest Overweight (x) 9 | . 5 9 Average Overweight (x) 5 | . 4 7 Largest Inventory Capacity 25 | 8 25 25 Average Capacity 23 | 7 22 25 Most Carried 25 | 7 23 25 Average Carried 19 | 4 16 24 Final Capacity 25 | 8 25 25 Final Carried 25 | 7 23 25 Class Distribution -------------------- 100% | Mutant Dominant Class ---------------- Mutant | -10/Materials Mutant | -10/Subcaves Resources | -11 -10 -10 ----------- Run | Yrd Mat Sub Matter Collected 1219 | 280 601 338 Remotely . | . . . Salvage Created 964 | 123 596 245 Parts 54 | 6 36 12 Haulers Intercepted . | . . . Recyclers Shooed . | . . . Parts Field Recycled . | . . . Retrieved Matter . | . . . Parts Self-Destructed 3 | . . 3 Prevented . | . . . Parts Restored . | . . . Kills | -11 -10 -10 ------- Run | Yrd Mat Sub Combat Hostiles Destroyed 22 | . 13 9 Guns 11 | . 11 . Cannons 10 | . 1 9 Classes Destroyed 8 | 2 4 2 Worker 1 | . 1 . Tunneler 1 | 1 . . Recycler 1 | 1 . . Watcher 3 | . 3 . Swarmer 3 | . 3 . Grunt 12 | . 10 2 Sentry 1 | . . 1 Subdweller 6 | . . 6 Best Kill Streak 3 | 2 3 2 Combat Bots Only 3 | . 3 2 Max Kills in Single Turn 1 | 1 1 1 Gunslinging . | . . . Exploded . | . . . Melee . | . . . Uniques/NPCs Destroyed . | . . . Combat | -11 -10 -10 -------- Run | Yrd Mat Sub Hostile Shots Fired 115 | . 65 50 Missed 33 | . 14 19 Hits 82 | . 51 31 Projectile 82 | . 51 31 AOE 2 | . . 2 Critical Strikes 2 | . 1 1 Damage Taken 1370 | 26 651 693 Core 256 | . 110 146 Absorbed by Shields . | . . . Core Remaining (%) 100 | 100 . . Volleys Fired 93 | 4 50 39 Largest 2 | 2 2 2 Hottest 80 | 80 80 66 Shots Fired 181 | 8 97 76 Gun 109 | 8 93 8 Cannon 72 | . 4 68 Launcher . | . . . Special . | . . . Kinetic 120 | . 44 76 Thermal 37 | . 37 . Explosive . | . . . Electromagnetic 24 | 8 16 . Robot Hit Streak 10 | 2 10 9 Robot Miss Streak 3 | 1 3 2 Penetration Max . | . . . Secondary Targets 1 | . 1 . Max Gunslinging Chain 1 | . 1 . Shots Hit Robots 113 | 5 66 42 Core Hits 50 | 2 32 16 Critical Kills . | . . . Critical Parts Destroyed . | . . . Critical Strikes 4 | . 1 3 Blast 3 | . . 3 Corrupt 1 | . 1 . Melee Attacks . | . . . Impact . | . . . Slashing . | . . . Piercing . | . . . Sneak Attacks . | . . . Combat Hostiles . | . . . Follow-up Attacks . | . . . Damage Inflicted 1727 | 129 871 727 Guns 795 | 81 675 39 Cannons 738 | . 50 688 Explosions 194 | 48 146 . Melee . | . . . Ramming . | . . . Kinetic 987 | . 260 727 Thermal 496 | 48 448 . Explosive . | . . . Electromagnetic 244 | 81 163 . Impact . | . . . Slashing . | . . . Piercing . | . . . Highest Corruption 1 | . 1 1 Average Corruption 1 | . 1 1 Corruption Purged . | . . . Corruption Blocked . | . . . Effects 23 | . 9 14 Message Errors 5 | . 2 3 Matter Fused 8 | . 3 5 Heat Flow Errors 2 | . 2 . Energy Discharges 1 | . . 1 Data Loss (minor) 4 | . 1 3 Data Loss (major) 2 | . . 2 Misfires 1 | . 1 . Overload Shots . | . . . Overflow Damage 8 | 8 . . Projectiles . | . . . Explosions 8 | 8 . . Melee . | . . . Knockbacks 7 | . 1 6 Impact . | . . . Kinetic 7 | . 1 6 Secondary . | . . . Self-Inflicted Damage 70 | 26 44 . Shots 2 | 1 1 . Rammed . | . . . Targets Rammed . | . . . Kicked . | . . . Crushed . | . . . Highest Temperature 231 | 66 231 9 Average Temperature 56 | 33 58 9 Received Heat Transfer 483 | . 315 168 Siege Activations . | . . . Martial Activations . | . . . Shielding Activations . | . . . Robots Disrupted . | . . . Combat Hostiles . | . . . Robots Corrupted 1 | . 1 . Combat Hostiles 1 | . 1 . Parts Fried 2 | . 2 . Impact Corruptions . | . . . Robots Melted . | . . . Combat Hostiles . | . . . Parts Melted 1 | . 1 . Heat Transferred 1000 | 50 950 . Parts Sabotaged . | . . . Parts Stolen . | . . . Parts Stripped . | . . . Power Chain Reactions 3 | 1 2 . Alert | -11 -10 -10 ------- Run | Yrd Mat Sub Maximum Alert Level . | . . . Low Security (%) 100 | 100 100 . Level 1 . | . . . Level 2 . | . . . Level 3 . | . . . Level 4 . | . . . Level 5 . | . . . High Security . | . . . Max Security . | . . . Peak Influence 157 | 5 157 . Initial . | . . . Average 65 | . 70 . Influence Increases 557 | 10 477 70 Destroy 0b10 Robot/C 320 | . 260 60 Destroy 0b10 Robot/NC 30 | 10 20 . Destroy Leader 66 | . 56 10 Successful Hack 24 | . 24 . Destroy Structure 12 | . 12 . Lose Combat Pursuer 105 | . 105 . Influence Decreases 557 | 10 452 95 Entered New Map 13 | . . 13 Time Decay 484 | 10 402 72 Lost Part 60 | . 50 10 Squads Dispatched 1 | . 1 . Investigation 1 | . 1 . Extermination . | . . . Reinforcement . | . . . Assault . | . . . Garrison . | . . . Intercept . | . . . Searches Triggered . | . . . Construction Impeded . | . . . Haulers Reinforced . | . . . Active Scanning Responses . | . . . Cargo Convoy Interrupts . | . . . Stealth | -11 -10 -10 --------- Run | Yrd Mat Sub Distress Signals . | . . . Communications Jammed . | . . . Distress Signals . | . . . Times Spotted 35 | . 23 12 Peak Tracking Total 3 | . 3 3 Tactical Retreats 6 | . 5 1 Traps | -11 -10 -10 ------- Run | Yrd Mat Sub Traps Triggered 3 | . 1 2 Indirectly . | . . . Trap Hack Attempts . | . . . Triggered . | . . . Disarmed . | . . . Reprogrammed . | . . . Reused . | . . . Traps Extracted . | . . . Installed . | . . . Triggered . | . . . Machines | -11 -10 -10 ---------- Run | Yrd Mat Sub Machines Disabled . | . . . Max in Single Turn . | . . . Machines Repaired . | . . . Machines Dismantled . | . . . Machines Sabotaged . | . . . Overloaded Fab Kills . | . . . Hacking | -11 -10 -10 --------- Run | Yrd Mat Sub Machines Accessed 7 | . 7 . Terminals 6 | . 6 . Fabricators . | . . . Repair Stations . | . . . Recycling Units 1 | . 1 . Scanalyzers . | . . . Garrison Access . | . . . Total Hacks 26 | . 26 . Successful 11 | . 11 . Failed 15 | . 15 . Catastrophic . | . . . Database Lockouts . | . . . Manual 23 | . 23 . Terminals 25 | . 25 . Fabricators . | . . . Repair Stations . | . . . Recycling Units 1 | . 1 . Scanalyzers . | . . . Garrison Access . | . . . Terminal Hacks 1 | . 1 . Zone Layout 1 | . 1 . Fabricator Hacks . | . . . Repair Station Hacks . | . . . Recycling Unit Hacks . | . . . Scanalyzer . | . . . Garrison Access Hacks . | . . . Unauthorized Hacks 10 | . 10 . Terminals 10 | . 10 . Track 1 | . 1 . Assimilate 3 | . 3 . Botnet 4 | . 4 . Disrupt 1 | . 1 . Operators 1 | . 1 . Fabricators . | . . . Repair Stations . | . . . Recycling Units . | . . . Scanalyzers . | . . . Garrison Access . | . . . Data Cores Recovered . | . . . Used . | . . . Hacking Detections 7 | . 7 . Full Trace Events . | . . . Feedback Events . | . . . Feedback Blocked . | . . . Robot Schematics Acquired . | . . . Robots Built . | . . . Authchips . | . . . Time . | . . . Total Robot Build Rating . | . . . Part Schematics Acquired . | . . . Parts Built . | . . . Authchips . | . . . Time . | . . . Total Part Build Rating . | . . . Part Studies Acquired . | . . . Parts Repaired . | . . . Time . | . . . Parts Recycled . | . . . Recycled Matter . | . . . Retrieved Matter . | . . . Retrieved Components . | . . . Parts Scanalyzed . | . . . Part Schematics Acquired . | . . . Parts Damaged . | . . . Bothacking | -11 -10 -10 ------------ Run | Yrd Mat Sub Used RIF Installer . | . . . Robots Hacked . | . . . Non-combat . | . . . Combat . | . . . Robot Hacks Applied . | . . . Relay Couplers Released . | . . . Fabnet Peak Effective % . | . . . Robots Rewired . | . . . Allies Hacked . | . . . Hacks Repelled . | . . . Allies | -11 -10 -10 -------- Run | Yrd Mat Sub Total Allies . | . . . Largest Group . | . . . Highest-Rated Group . | . . . Highest-Rated Ally . | . . . Total Orders . | . . . Ally Attacks . | . . . Total Damage . | . . . Kills . | . . . Allies Corrupted . | . . . Allies Melted . | . . . Intel | -11 -10 -10 ------- Run | Yrd Mat Sub Active Infowar (turns) 2567 | 20 1633 914 Terrain 5 | 5 . . Seismic 2562 | 15 1633 914 Robot Analysis Total . | . . . Derelict Logs Recovered 1 | . . 1 Drone Launches . | . . . Drone Recoveries . | . . . Exploration | -11 -10 -10 ------------- Run | Yrd Mat Sub Turns Passed 3020 | 114 1633 1273 Spaces Moved 1464 | 58 831 575 Core 8 | 8 . . Treads 192 | 50 130 12 Legs . | . . . Wheels 1264 | . 701 563 Hover . | . . . Flight . | . . . Fastest Speed 50 | 50 160 140 Average Speed 181 | 144 172 197 Slowest Speed 320 | 160 175 320 Overloaded Moves . | . . . Propulsion Burnouts . | . . . Robots Hopped . | . . . Potential Cave-ins . | . . . Cave-ins Triggered . | . . . Exploration Rate (%) 41 | 3 71 49 Regions Visited 2 Branch Regions 1 Pre-discovered Areas . | . . . Known Exits Taken . | . . . Unknown Exits Taken 2 | 1 1 . Scrap Searched 3 | . . 3 Spaces Dug . | . . . Terrain Destroyed 10 | . 10 . Melee . | . . . Projectile . | . . . AOE 10 | . 10 . Terrain Rammed . | . . . Walls Destroyed . | . . . Machines Disabled . | . . . Actions | -11 -10 -10 --------- Run | Yrd Mat Sub Total 1662 | 78 943 641 Wait 36 | . 34 2 Move 1462 | 57 830 575 Hop . | . . . Pick Up 37 | 8 21 8 Fast Attach 10 | 6 . 4 Attach 11 | 2 5 4 Detach 3 | 1 . 2 Swap 2 | . 2 . Drop 8 | . 1 7 Fire 93 | 4 50 39 Melee . | . . . Ram . | . . . Kick . | . . . Crush . | . . . Escape Stasis . | . . . Rewire . | . . . Trap . | . . . Miscellaneous . | . . . Route ------- -11/Scrapyard -10/Materials (discovered 4 exits: [*Mat] / [*Min x2] / [*Sub]) -10/Subcaves History --------- Turn | Location | Event 2 | -11/Scrapyard | Met Revision 17 17 | -11/Scrapyard | Discovered new exit (range 16) 115 | -11/Scrapyard | Entered Materials 181 | -10/Materials | Discovered new exit (range 5) 311 | -10/Materials | Build established: Mutant 358 | -10/Materials | Discovered new exit (range 5) 1181 | -10/Materials | Discovered new exit (range 6) 1733 | -10/Materials | Discovered new exit (range 10) 1748 | -10/Materials | Entered Subcaves 1749 | -10/Subcaves | Approached by a straggling Scientist 1769 | -10/Subcaves | Learned Materials emergency access door positions 1999 | -10/Subcaves | Core integrity fell below 50% 2345 | -10/Subcaves | A swath of the cavern ceiling suddenly collapsed 2546 | -10/Subcaves | Shifting Twisted Machinery released Shrapnel Trap 2847 | -10/Subcaves | Core integrity fell below 20% 3021 | -10/Subcaves | Destroyed by T7-6TA(R) with Subdweller Laser Last Messages --------------- 02872_ Spikes shoot up from the floor. 02872_ FM-P1O(c) suffers critical hit (Impale). 02872_ FM-P1O(c) destroyed. 02882_ Tech Extrapolator violently self-destructs. 02884_ System corrupted: Component data lost. 02888_ Dropped Aluminum Leg. 02889_ Acquired Wheel. 02894_ Acquired 17 matter. 02952_ DS-9LY(R) destroyed. 02955_ QW-TYK(R) knocked back. 02970_ QW-TYK(R) destroyed. 02984_ Acquired 26 matter. 02987_ Dropped Aluminum Leg. 02987_ Acquired Sub. Shrapnel Launcher. 02990_ Acquired 12 matter. 02992_ Acquired 2 matter. 03017_ System corrupted: Energy discharge (-82). 03019_ OQ-01K(R) Sub. Monowheel blasted off. 03019_ OQ-01K(R) destroyed. Map ----- +----------------------------------------------------+ | ???????????????????????????????## " ""#???????? | | ???????????????????????????????# "" #???????? | | ???????????????????????????????# "#???????? | | ???????????????????????????????# ##???????? | | ???????????????????????????????# ##???????? | | ???????????????????????????????## "#???????? | | ????????????????????????????????# ##???????? | | ????????????????????????????????### & "#????????? | | ??????????????????????????????????#%=&""#????????? | | ??????????????????????????????????## %!##????????? | | ??????????????????????????????????#""&%#?????????? | | ??????????????????????????????????##" #?????????? | | ???????????????????????????????????#" ##?????????? | | ????????????????????????????????####" ##?????????? | | ???????????????????????????##??## ##????????? | | ???????????????????????????# ### #????????? | | ???????????????????????????# ##????????? | | ???????????????????????????# ##?????????? | | ???????????????????????????# ##??????????? | | ???????????????????????????## ### #???????????? | | ????????????????????????????## ###?# #???????????? | | ?????????????????????????##### #??? #???????????? | | ?????????????????????????# ## ### ##??????????? | | ?????????????????????????# #??????????? | | ????????????????????# ### #??????????? | | ????????????????????# @ ""#??????????? | | ????????????????????# ### ###"""#??????????? | | ????????????????????# ??# #?#####??????????? | | ????????????????????# ???# #????????????????? | | ??????????????????? ???## ##????????????????? | | ????????????????? ????? ?????????????????? | | ???????????????? ????? #????????????????? | | ??????????????? ?????? ##????????????????? | | ??????????????%=R ?????? ##?????????????????? | | ????????????? %! ???????###??????????????????? | | ?????????????? ## ????????????????????????????? | | ??????????????]??## ?????????????????????????????? | | ??????????????????##?????????????????????????????? | | ?????????????????????????????????????????????????? | | ?????????????????????????????????????????????????? | | ?????????????????????????????????????????????????? | | ?????????????????????????????????????????????????? | | ?????????????????????????????????????????????????? | | ?????????????????????????????????????????????????? | | ?????????????????????????????????????????????????? | | ?????????????????????????????????????????????????? | | ?????????????????????????????????????????????????? | | ?????????????????????????????????????????????????? | | ?????????????????????????????????????????????????? | | ?????????????????????????????????????????????????? | +----------------------------------------------------+ Best States ------------- Heat Dissipation 25 Energy Generation 10 Energy Capacity 250 Matter Stores 300 Matter Capacity 300 Sight Range 16 Terrain Scan Density 10 Armor Coverage 150 Evasion (%) 40 Recoil Reduction 2 Item Schematics ----------------- None Robot Schematics ------------------ None Fabricated ------------ Nothing Repaired ---------- Nothing Studied --------- None Alien Tech Used ----------------- None Achievements -------------- None Challenges ------------ None Game ------ Seed NetworkedOpticalImpeller Manual? 0 Play Time 00:21:37 Cumulative 120.4 hours Start 2026.02.12 @ 20:03:28 End 2026.02.12 @ 20:21:52 Sessions 1 Manual Loads 0 Difficulty Rogue Special Mode None Game No. 130 Rogue 130 Adventurer 0 Explorer 0 Win Type - Total 4 Types 4/0/0/0/0/0/0/0/0/0 Lore% 66 Gallery% 52 Achievement% 40 Wizard Run 0 Options --------- Layout 1 ASCII 0 Keyboard 1 Movement Vi Keybinds 0 Fullscreen 2 Font 24/Terminus Map View 50x35 Zoom Use 0% Tactical HUD 1 Map Filters NONE Filters NONE Steam 1 RUN: 1838e7c4-e714-4407-be2a-fbd137d7fe93